Cogmind - Beta 17.1 @@@ ROGUE MODE // 2026.09.13 @ 01:22:55 Player: Matt Result: Destroyed by S-10 Pest with Light Assault Rifle Performance ------------- Evolutions (1) 500 Regions Visited (3) 600 Robots Destroyed (22) 110 Value Destroyed (523) 523 Prototype IDs (0) 0 Alien Tech Used (0) 0 Bonus (0) 0 TOTAL SCORE: 1733 Bonus ------- None Cogmind --------- Core Integrity 0/400 Matter 300/300 Energy 100/100 System Corruption 1% Temperature Cool (0) Movement Core (450) Ox8 Location -9/Mines Parts ------- > --- POWER (1) -------- (None) > --- PROPULSION (4) --- (None) > --- UTILITY (2) ------ Large Storage Unit > --- WEAPON (2) ------- Heavy Hammer Heavy Hammer > --- INVENTORY (15) --- Datajack Peak State ------------ > --- POWER ------------ Improved Ion Engine > --- PROPULSION ------- Aluminum Leg Aluminum Leg Flight Unit > --- UTILITY ---------- Shield Generator Shield Generator > --- WEAPON ----------- Particle Cannon Assault Rifle > --- INVENTORY -------- Large Storage Unit Light Armor Plating Datajack Heavy Hammer Heavy Hammer [Rating: 12] Favorites ----------- Power Improved Ion Engine Engine Improved Ion Engine Propulsion Aluminum Leg Leg Aluminum Leg Wheel Wheel Flight Unit Flight Unit Utility Shield Generator Device Shield Generator Storage Large Storage Unit Protection Light Armor Plating Weapon Assault Rifle Energy Gun Beam Rifle Energy Cannon Particle Cannon Ballistic Gun Assault Rifle Impact Weapon Heavy Hammer Build | -11 -10 -9 -9 ------- Run | Yrd Mat Mat Min Slots Evolved 2 | . . 2 . Power . | . . . . Propulsion 2 | . . 2 . Utility . | . . . . Weapon . | . . . . Parts Attached 27 | 7 7 9 4 Power 3 | 1 2 . . Engine 3 | 1 2 . . Core . | . . . . Reactor . | . . . . Propulsion 11 | 3 3 5 . Treads . | . . . . Leg 5 | 2 3 . . Wheel 1 | 1 . . . Hover . | . . . . Flight 5 | . . 5 . Utility 6 | 1 2 1 2 Device 2 | . 2 . . Storage 2 | 1 . . 1 Processor . | . . . . Hackware . | . . . . Protection 2 | . . 1 1 Artifact . | . . . . Weapon 7 | 2 . 3 2 Energy Gun 1 | . . 1 . Energy Cannon 1 | . . 1 . Ballistic Gun 3 | 2 . 1 . Ballistic Cannon . | . . . . Launcher . | . . . . Special Weapon . | . . . . Impact Weapon 2 | . . . 2 Slashing Weapon . | . . . . Piercing Weapon . | . . . . Special Melee Weapon . | . . . . Unidentified Prototypes . | . . . . Parts Lost 11 | . . 3 8 Power 1 | . . . 1 Propulsion 4 | . . 1 3 Utility 3 | . . 1 2 Weapon 3 | . . 1 2 Highest Loss Streak 8 | . . 2 8 To Critical Strikes . | . . . . Average Backups 4 | 4 4 5 2 Power . | . . . . Propulsion 1 | 3 2 . . Utility 1 | . . 2 . Weapon 1 | . 1 2 . Tool/Special . | . . . . Unused Backups 5 | 1 3 . 1 Power . | . . . . Propulsion 3 | . 3 . . Utility . | . . . . Weapon 1 | 1 . . . Tool/Special 1 | . . . 1 Average Slot Usage (%) 84 | . 98 84 46 Engine 10 | . 14 11 2 Leg 16 | . 27 9 . Flight 8 | . . 21 9 Device 17 | . 25 13 2 Storage 1 | . 1 . 7 Protection 2 | . . 6 2 Energy Cannon 2 | . . 7 . Ballistic Gun 18 | . 27 12 3 Impact Weapon 2 | . . . 16 Peak Build Rating 12 | 6 10 12 12 Average Rating 9 | 4 9 10 6 On Entrance 7 | . 6 10 12 Avg Prop Armor Cover (%) . | . . . . Naked Turns . | . . . . Heaviest Build 26 | 14 18 18 26 Greatest Support 20 | 20 20 20 12 Greatest Overweight (x) 8 | 1 4 5 8 Average Overweight (x) . | . . . 4 Largest Inventory Capacity 15 | 8 8 5 15 Average Capacity 6 | 7 5 5 12 Most Carried 6 | 6 5 5 5 Average Carried 4 | 4 4 5 1 Final Capacity 15 | 8 5 5 15 Final Carried 5 | 4 5 5 1 Class Distribution -------------------- 80% | Mutant 19% | Scavenger-Mutant Dominant Class ---------------- Mutant | -10/Materials Scavenger-Mutant | -9/Materials Mutant | -9/Mines Resources | -11 -10 -9 -9 ----------- Run | Yrd Mat Mat Min Matter Collected 783 | 230 247 263 43 Remotely . | . . . . Salvage Created 684 | . 247 326 111 Parts 37 | . 11 25 1 Haulers Intercepted 1 | . 1 . . Recyclers Shooed . | . . . . Parts Field Recycled . | . . . . Retrieved Matter . | . . . . Parts Self-Destructed . | . . . . Prevented . | . . . . Parts Restored . | . . . . Kills | -11 -10 -9 -9 ------- Run | Yrd Mat Mat Min Combat Hostiles Destroyed 15 | . 5 8 2 Melee 1 | . . . 1 Guns 10 | . 5 5 . Cannons 3 | . . 3 . Classes Destroyed 8 | . 3 3 2 Worker 3 | . 1 . 2 Builder 1 | . . . 1 Hauler 1 | . 1 . . Watcher 2 | . . 2 . Swarmer 4 | . . 4 . Grunt 6 | . 5 . 1 Duelist 1 | . . . 1 Sentry 4 | . . 4 . Best Kill Streak 5 | . 2 5 3 Combat Bots Only 3 | . 2 3 1 Max Kills in Single Turn 1 | . 1 1 1 Gunslinging . | . . . . Exploded . | . . . . Melee 1 | . . . 1 Uniques/NPCs Destroyed . | . . . . Combat | -11 -10 -9 -9 -------- Run | Yrd Mat Mat Min Hostile Shots Fired 170 | . 46 61 63 Missed 45 | . 11 18 16 Hits 125 | . 35 43 47 Melee 12 | . . . 12 Projectile 113 | . 35 43 35 Critical Strikes 3 | . . 1 2 Damage Taken 1433 | . 292 401 740 Core 458 | . 52 28 378 Absorbed by Shields 255 | . 107 136 12 Core Remaining (%) 89 | 100 79 . . Volleys Fired 66 | . 23 32 11 Largest 2 | . 2 2 2 Hottest 88 | . 40 88 79 Shots Fired 122 | . 46 61 15 Gun 103 | . 46 42 15 Cannon 19 | . . 19 . Launcher . | . . . . Special . | . . . . Kinetic 92 | . 46 35 11 Thermal 30 | . . 26 4 Explosive . | . . . . Electromagnetic . | . . . . Robot Hit Streak 9 | . 3 9 5 Robot Miss Streak 4 | . 3 3 4 Penetration Max . | . . . . Secondary Targets . | . . . . Shots Hit Robots 84 | . 23 40 21 Core Hits 28 | . 11 14 3 Critical Kills 1 | . 1 . . Critical Parts Destroyed . | . . . . Critical Strikes 2 | . 1 . 1 Burn 1 | . . . 1 Destroy 1 | . 1 . . Melee Attacks 12 | . . . 12 Impact 12 | . . . 12 Slashing . | . . . . Piercing . | . . . . Sneak Attacks 1 | . . . 1 Combat Hostiles . | . . . . Follow-up Attacks 2 | . . . 2 Damage Inflicted 1589 | . 304 666 619 Guns 880 | . 304 406 170 Cannons 245 | . . 245 . Explosions . | . . . . Melee 449 | . . . 449 Ramming 15 | . . 15 . Kinetic 750 | . 304 319 127 Thermal 375 | . . 332 43 Explosive . | . . . . Electromagnetic . | . . . . Impact 449 | . . . 449 Slashing . | . . . . Piercing . | . . . . Highest Corruption 1 | . . 1 1 Average Corruption 1 | . . 1 1 Corruption Purged . | . . . . Corruption Blocked . | . . . . Effects 1 | . . . 1 Data Loss (minor) 1 | . . . 1 Overload Shots . | . . . . Overflow Damage 133 | . . 11 122 Projectiles 11 | . . 11 . Explosions . | . . . . Melee 122 | . . . 122 Knockbacks 3 | . . . 3 Impact 3 | . . . 3 Kinetic . | . . . . Secondary . | . . . . Self-Inflicted Damage 6 | . . 6 . Shots . | . . . . Rammed 5 | . . 5 . Targets Rammed 5 | . . 5 . Kicked . | . . . . Crushed . | . . . . Highest Temperature 269 | . . 269 94 Average Temperature 96 | . . 102 53 Received Heat Transfer 400 | . 142 98 160 Siege Activations . | . . . . Martial Activations . | . . . . Shielding Activations . | . . . . Robots Disrupted . | . . . . Combat Hostiles . | . . . . Robots Corrupted 4 | . . . 4 Combat Hostiles 1 | . . . 1 Parts Fried 4 | . . . 4 Impact Corruptions 7 | . . . 7 Robots Melted . | . . . . Combat Hostiles . | . . . . Parts Melted 1 | . . 1 . Heat Transferred 851 | . . 666 185 Parts Sabotaged . | . . . . Parts Stolen . | . . . . Parts Stripped . | . . . . Power Chain Reactions . | . . . . Alert | -11 -10 -9 -9 ------- Run | Yrd Mat Mat Min Maximum Alert Level . | . . . . Low Security (%) 100 | 100 100 100 100 Level 1 . | . . . . Level 2 . | . . . . Level 3 . | . . . . Level 4 . | . . . . Level 5 . | . . . . High Security . | . . . . Max Security . | . . . . Peak Influence 132 | . 56 132 33 Initial 33 | . . . 33 Average 22 | . 10 53 9 Influence Increases 523 | . 170 288 65 Destroy 0b10 Robot/C 300 | . 100 160 40 Destroy 0b10 Robot/NC 35 | . 10 10 15 Destroy Leader 76 | . 12 54 10 Successful Hack 6 | . 2 4 . Disable Machine 15 | . . 15 . Destroy Structure 1 | . 1 . . Lose Combat Pursuer 90 | . 45 45 . Influence Decreases 523 | . 170 202 151 Entered New Map 53 | . . . 53 Time Decay 417 | . 170 172 75 Lost Part 53 | . . 30 23 Squads Dispatched 2 | . 1 1 . Investigation 1 | . 1 . . Extermination . | . . . . Reinforcement 1 | . . 1 . Assault . | . . . . Garrison . | . . . . Intercept . | . . . . Searches Triggered . | . . . . Construction Impeded . | . . . . Haulers Reinforced . | . . . . Active Scanning Responses . | . . . . Cargo Convoy Interrupts . | . . . . Stealth | -11 -10 -9 -9 --------- Run | Yrd Mat Mat Min Distress Signals 3 | . 1 2 . Communications Jammed . | . . . . Distress Signals . | . . . . Times Spotted 31 | . 10 15 6 Peak Tracking Total 5 | . 4 5 4 Tactical Retreats 3 | . 2 1 . Traps | -11 -10 -9 -9 ------- Run | Yrd Mat Mat Min Traps Triggered 3 | . 3 . . Indirectly . | . . . . Trap Hack Attempts . | . . . . Triggered . | . . . . Disarmed . | . . . . Reprogrammed . | . . . . Reused . | . . . . Traps Extracted . | . . . . Installed . | . . . . Triggered . | . . . . Machines | -11 -10 -9 -9 ---------- Run | Yrd Mat Mat Min Machines Disabled 1 | . . 1 . Max in Single Turn 1 | . . 1 . Machines Repaired . | . . . . Machines Dismantled . | . . . . Machines Sabotaged . | . . . . Overloaded Fab Kills . | . . . . Hacking | -11 -10 -9 -9 --------- Run | Yrd Mat Mat Min Machines Accessed 3 | . 2 1 . Terminals 3 | . 2 1 . Fabricators . | . . . . Repair Stations . | . . . . Recycling Units . | . . . . Scanalyzers . | . . . . Garrison Access . | . . . . Total Hacks 9 | . 7 2 . Successful 5 | . 4 1 . Failed 4 | . 3 1 . Catastrophic 3 | . 3 . . Database Lockouts . | . . . . Manual 2 | . 2 . . Terminals 9 | . 7 2 . Fabricators . | . . . . Repair Stations . | . . . . Recycling Units . | . . . . Scanalyzers . | . . . . Garrison Access . | . . . . Terminal Hacks 5 | . 4 1 . Record 2 | . 2 . . Alert Level 2 | . 2 . . Locate Traps 1 | . . 1 . Fabricator Hacks . | . . . . Repair Station Hacks . | . . . . Recycling Unit Hacks . | . . . . Scanalyzer . | . . . . Garrison Access Hacks . | . . . . Unauthorized Hacks . | . . . . Terminals . | . . . . Fabricators . | . . . . Repair Stations . | . . . . Recycling Units . | . . . . Scanalyzers . | . . . . Garrison Access . | . . . . Data Cores Recovered . | . . . . Used . | . . . . Hacking Detections 2 | . 2 . . Full Trace Events 2 | . 2 . . Feedback Events . | . . . . Feedback Blocked . | . . . . Robot Schematics Acquired . | . . . . Robots Built . | . . . . Authchips . | . . . . Time . | . . . . Total Robot Build Rating . | . . . . Part Schematics Acquired . | . . . . Parts Built . | . . . . Authchips . | . . . . Time . | . . . . Total Part Build Rating . | . . . . Part Studies Acquired . | . . . . Parts Repaired . | . . . . Time . | . . . . Parts Recycled . | . . . . Recycled Matter . | . . . . Retrieved Matter . | . . . . Retrieved Components . | . . . . Parts Scanalyzed . | . . . . Part Schematics Acquired . | . . . . Parts Damaged . | . . . . Bothacking | -11 -10 -9 -9 ------------ Run | Yrd Mat Mat Min Used RIF Installer . | . . . . Robots Hacked . | . . . . Non-combat . | . . . . Combat . | . . . . Robot Hacks Applied . | . . . . Relay Couplers Released . | . . . . Fabnet Peak Effective % . | . . . . Robots Rewired . | . . . . Allies Hacked . | . . . . Hacks Repelled . | . . . . Allies | -11 -10 -9 -9 -------- Run | Yrd Mat Mat Min Total Allies . | . . . . Largest Group . | . . . . Highest-Rated Group . | . . . . Highest-Rated Ally . | . . . . Total Orders . | . . . . Ally Attacks . | . . . . Total Damage . | . . . . Kills . | . . . . Allies Corrupted . | . . . . Allies Melted . | . . . . Intel | -11 -10 -9 -9 ------- Run | Yrd Mat Mat Min Active Infowar (turns) . | . . . . Robot Analysis Total . | . . . . Derelict Logs Recovered . | . . . . Drone Launches . | . . . . Drone Recoveries . | . . . . Exploration | -11 -10 -9 -9 ------------- Run | Yrd Mat Mat Min Turns Passed 1712 | 126 793 507 286 Spaces Moved 1057 | 98 551 327 81 Core 64 | 21 1 2 40 Treads . | . . . . Legs 761 | 74 550 137 . Wheels 3 | 3 . . . Hover . | . . . . Flight 229 | . . 188 41 Fastest Speed 50 | 50 120 111 114 Average Speed 131 | 112 120 117 284 Slowest Speed 520 | 190 250 360 520 Overloaded Moves . | . . . . Propulsion Burnouts . | . . . . Robots Hopped . | . . . . Potential Cave-ins . | . . . . Cave-ins Triggered . | . . . . Exploration Rate (%) 27 | 4 62 25 17 Regions Visited 3 Branch Regions 1 Pre-discovered Areas . | . . . . Known Exits Taken . | . . . . Unknown Exits Taken 3 | 1 1 1 . Scrap Searched . | . . . . Spaces Dug . | . . . . Terrain Destroyed . | . . . . Melee . | . . . . Projectile . | . . . . AOE . | . . . . Terrain Rammed . | . . . . Walls Destroyed . | . . . . Machines Disabled . | . . . . Actions | -11 -10 -9 -9 --------- Run | Yrd Mat Mat Min Total 1238 | 111 636 386 105 Wait 31 | . 28 3 . Move 1054 | 97 550 326 81 Hop . | . . . . Pick Up 12 | 5 7 . . Fast Attach 26 | 6 8 12 . Attach 5 | 1 . . 4 Detach 2 | 1 1 . . Swap 5 | . 5 . . Drop 23 | 1 14 8 . Fire 66 | . 23 32 11 Melee 9 | . . . 9 Ram 5 | . . 5 . Kick . | . . . . Crush . | . . . . Escape Stasis . | . . . . Rewire . | . . . . Trap . | . . . . Miscellaneous . | . . . . Route ------- -11/Scrapyard -10/Materials (discovered 2 exits: *Mat x2) -9/Materials -9/Mines History --------- Turn | Location | Event 14 | -11/Scrapyard | Discovered new exit (range 15) 127 | -11/Scrapyard | Entered Materials 161 | -10/Materials | Discovered new exit (range 16) 308 | -10/Materials | Build established: Mutant 915 | -10/Materials | Discovered new exit (range 4) 920 | -10/Materials | Entered another Materials area 920 | -9/Materials | Evolved 2 slots: Propulsion x2 1397 | -9/Materials | Discovered new exit (range 10) 1427 | -9/Materials | Entered Mines 1432 | -9/Mines | Met a Derelict bent on vengeance 1446 | -9/Mines | Build established: Scavenger-Mutant 1501 | -9/Mines | Core integrity fell below 50% 1535 | -9/Mines | Core integrity fell below 20% 1546 | -9/Mines | Lost 8 parts (1p3n2u2w) 1713 | -9/Mines | Destroyed by S-10 Pest with Light Assault Rifle Last Messages --------------- 01667_ U-05 Engineer system corrupted by crushing effect. 01667_ U-05 Engineer knocked back. 01668_ U-05 Engineer system terminally corrupted. 01668_ Terrain Scan Processor fried. 01668_ K-01 Serf collects debris. 01677_ Destroyed Lgt. Ion Engine. 01677_ K-01 Serf system corrupted by crushing effect. 01678_ K-01 Serf system terminally corrupted. 01678_ K-01 Serf collects debris. 01680_ Destroyed Wheel. 01680_ K-01 Serf system corrupted by crushing effect. 01681_ K-01 Serf system terminally corrupted. 01681_ Lgt. Ion Engine fried. 01681_ K-01 Serf collects debris. 01708_ S-10 Pest destroyed. 01711_ K-01 Serf collects debris. Map ----- +----------------------------------------------------+ | ?????????????????????????????????????????????????? | | ?????????????????????????????????????????????????? | | ?????????????????????????????????????????????????? | | ?????????????????????????????????????????????????? | | ?????????????????????????????????????????????????? | | ?????????????????????????????????????????????????? | | ?????????????????????????????????????????????????? | | ?????????????????????##??????????????????????????? | | ????????????????????? ##????????????????????????? | | ????????????????????? #????????????????????????? | | ????????????????????? #????????????????????????? | | ????????????????????? #????????????????????????? | | ?????????????????????# #????????????????????????? | | ????????????????????## #?????????????????????????? | | ????????###?????##### #?????????????????????????? | | ??????? ###### #???????###???????????????? | | ?????? + # #??????# ##??????????????? | | ???????? + ####### #??????????????? | | ???????????# ## ##?????????????? | | ???????????## ##????????????? | | ????????????# % ######???????? | | ???????????## k ???????? | | ??????????## s ??????? | | ?????????## #### %s #????????? | | ????????## ##??## s * #?????????? | | ????????# #????# @## %[ ###??????????? | | ????????# #????### #?# ##????????????? | | ????????## #??????# #?? ##?????????????? | | ????????## #??????# #??? ##??????????????? | | ???????## ##?????# #??? % #???????????????? | | ???????# ##????# #?? ##???????????????? | | ???????# #????# ### #?????????????????? | | ???????## ##????# #?????????????????? | | ????????# ###?????##### #?????????????????? | | ????????## ##????????????% #?????????????????? | | ?????????## #?????????????? #?????????????????? | | ??????????## ##?????????????? #?????????????????? | | ???????????####????????????????#?????????????????? | | ?????????????????????????????????????????????????? | | ?????????????????????????????????????????????????? | | ?????????????????????????????????????????????????? | | ?????????????????????????????????????????????????? | | ?????????????????????????????????????????????????? | | ?????????????????????????????????????????????????? | | ?????????????????????????????????????????????????? | | ?????????????????????????????????????????????????? | | ?????????????????????????????????????????????????? | | ?????????????????????????????????????????????????? | | ?????????????????????????????????????????????????? | | ?????????????????????????????????????????????????? | +----------------------------------------------------+ Best States ------------- Heat Dissipation 28 Energy Generation 12 Energy Capacity 265 Matter Stores 300 Matter Capacity 300 Sight Range 16 Terrain Scan Density 10 Armor Coverage 150 Evasion (%) 55 Item Schematics ----------------- None Robot Schematics ------------------ None Fabricated ------------ Nothing Repaired ---------- Nothing Studied --------- None Alien Tech Used ----------------- None Achievements -------------- Overwhelming Power Corrupts Challenges ------------ None Game ------ Seed CoreHelicalMask Manual? 0 Play Time 00:27:31 Cumulative 2.1 hours Start 2026.09.13 @ 00:57:10 End 2026.09.13 @ 01:22:55 Sessions 1 Manual Loads 0 Difficulty Rogue Special Mode None Game No. 8 Rogue 5 Adventurer 0 Explorer 3 Win Type - Total 0 Types 0/0/0/0/0/0/0/0/0/0 Lore% 0 Gallery% 2 Achievement% 4 Wizard Run 0 Options --------- Layout 1 ASCII 0 Keyboard 1 Movement Vi Keybinds 0 Fullscreen 1 Font 16/SmallcapsGlow Map View 25x17 Zoom Use 89% Tactical HUD 1 Map Filters NONE Filters NONE Steam SD RUN: 1c121f1e-b621-4f29-80f5-f011e0ae1c1b